[Event "Live Chess"]
[Site "Chess.com"]
[Date "2024.06.02"]
[Round "-"]
[White "bonantagulo"]
[Black "EPotapov05"]
[Result "1-0"]
[WhiteElo "2226"]
[BlackElo "1805"]
[TimeControl "300"]
[EndTime "23:21:38 PDT"]
[Termination "bonantagulo won on time"]

1. d4 {[%clk 0:04:55.1]} 1... d5 {[%clk 0:04:58.4]} 2. c4 {[%clk 0:04:43.5]}
2... dxc4 {[%clk 0:04:57.1]} 3. Nf3 {[%clk 0:04:35.8]} 3... Nf6 {[%clk 0:04:55]}
4. e3 {[%clk 0:04:27.5]} 4... e6 {[%clk 0:04:53.6]} 5. Bxc4 {[%clk 0:04:26.1]}
5... c5 {[%clk 0:04:53.1]} 6. O-O {[%clk 0:04:22.7]} 6... Nc6 {[%clk 0:04:51.5]}
7. Qe2 {[%clk 0:04:20]} 7... cxd4 {[%clk 0:04:49.9]} 8. Rd1 {[%clk 0:04:18.4]}
8... Be7 {[%clk 0:04:47.9]} 9. exd4 {[%clk 0:04:14.6]} 9... O-O {[%clk
0:04:45.8]} 10. Nc3 {[%clk 0:04:09.8]} 10... a6 {[%clk 0:04:44.2]} 11. d5 {[%clk
0:04:03.9]} 11... exd5 {[%clk 0:04:39.4]} 12. Nxd5 {[%clk 0:04:03.8]} 12... Nxd5
{[%clk 0:04:37.5]} 13. Bxd5 {[%clk 0:04:01.9]} 13... Qc7 {[%clk 0:04:30.1]} 14.
Bxc6 {[%clk 0:03:33.2]} 14... bxc6 {[%clk 0:04:27.4]} 15. Bg5 {[%clk 0:03:24.9]}
15... Bd6 {[%clk 0:04:13.1]} 16. h3 {[%clk 0:03:05.6]} 16... Be6 {[%clk
0:04:05.7]} 17. Nd4 {[%clk 0:02:57.4]} 17... Bd5 {[%clk 0:04:04.3]} 18. Nf5
{[%clk 0:02:47.2]} 18... Bc5 {[%clk 0:03:54.1]} 19. Rac1 {[%clk 0:02:36.8]}
19... Qa7 {[%clk 0:03:47.3]} 20. Be7 {[%clk 0:02:03.3]} 20... Bxe7 {[%clk
0:03:34.2]} 21. Nxe7+ {[%clk 0:02:03.2]} 21... Kh8 {[%clk 0:03:33]} 22. Nxd5
{[%clk 0:01:55.7]} 22... cxd5 {[%clk 0:03:31.9]} 23. Rxd5 {[%clk 0:01:51.7]}
23... Rfe8 {[%clk 0:03:27.2]} 24. Qd2 {[%clk 0:01:44.4]} 24... Qb6 {[%clk
0:03:13.7]} 25. Rd6 {[%clk 0:01:28]} 25... Qb5 {[%clk 0:03:09]} 26. Rc7 {[%clk
0:01:15.9]} 26... Kg8 {[%clk 0:02:58.4]} 27. Rdd7 {[%clk 0:01:13.1]} 27... Rf8
{[%clk 0:02:41.6]} 28. Qd5 {[%clk 0:01:03.9]} 28... Qxd5 {[%clk 0:02:25.7]} 29.
Rxd5 {[%clk 0:01:03.8]} 29... Rab8 {[%clk 0:02:18]} 30. b3 {[%clk 0:01:03]}
30... Rb6 {[%clk 0:02:15.9]} 31. Rdd7 {[%clk 0:01:01.8]} 31... g6 {[%clk
0:02:09.8]} 32. Ra7 {[%clk 0:01:00.9]} 32... Kg7 {[%clk 0:02:07.1]} 33. h4
{[%clk 0:00:59.3]} 33... h5 {[%clk 0:02:04.9]} 34. g3 {[%clk 0:00:58.6]} 34...
Rf6 {[%clk 0:02:03.6]} 35. Kg2 {[%clk 0:00:51.7]} 35... Rc8 {[%clk 0:01:51.6]}
36. Rd2 {[%clk 0:00:47.3]} 36... Rfc6 {[%clk 0:01:36]} 37. Rad7 {[%clk
0:00:40.5]} 37... Rc2 {[%clk 0:01:27.6]} 38. b4 {[%clk 0:00:32.1]} 38... Rxd2
{[%clk 0:01:23.3]} 39. Rxd2 {[%clk 0:00:32]} 39... Rc4 {[%clk 0:01:21.3]} 40.
Rd6 {[%clk 0:00:27.5]} 40... Rxb4 {[%clk 0:01:18.9]} 41. Rxa6 {[%clk 0:00:26.9]}
41... Rb2 {[%clk 0:01:14.5]} 42. Ra8 {[%clk 0:00:26.2]} 42... Rb4 {[%clk
0:01:09.8]} 43. a4 {[%clk 0:00:26.1]} 43... Rb3 {[%clk 0:01:07.9]} 44. a5 {[%clk
0:00:26]} 44... Ra3 {[%clk 0:01:05.8]} 45. a6 {[%clk 0:00:25.4]} 45... Kf6
{[%clk 0:01:01.4]} 46. Kf1 {[%clk 0:00:24.9]} 46... Ra2 {[%clk 0:00:57.3]} 47.
Kg2 {[%clk 0:00:23.9]} 47... Kg7 {[%clk 0:00:52.3]} 48. Kf3 {[%clk 0:00:23.2]}
48... Ra4 {[%clk 0:00:48.3]} 49. Ke3 {[%clk 0:00:23.1]} 49... Kf6 {[%clk
0:00:45.8]} 50. Kd3 {[%clk 0:00:22.6]} 50... Kg7 {[%clk 0:00:42.6]} 51. Kc3
{[%clk 0:00:21.7]} 51... Ra1 {[%clk 0:00:39.3]} 52. Kb4 {[%clk 0:00:19.5]} 52...
Rb1+ {[%clk 0:00:37.6]} 53. Kc5 {[%clk 0:00:18.6]} 53... Rc1+ {[%clk 0:00:36.4]}
54. Kb6 {[%clk 0:00:17.9]} 54... Rb1+ {[%clk 0:00:31.7]} 55. Ka7 {[%clk
0:00:17]} 55... Rb2 {[%clk 0:00:19]} 56. Rb8 {[%clk 0:00:16.9]} 56... Rxf2
{[%clk 0:00:16.4]} 57. Kb7 {[%clk 0:00:15.2]} 57... Ra2 {[%clk 0:00:11.4]} 58.
a7 {[%clk 0:00:14.1]} 58... f6 {[%clk 0:00:02.5]} 59. a8=Q {[%clk 0:00:14]}
59... Rxa8 {[%clk 0:00:00.8]} 60. Kxa8 {[%clk 0:00:13.9]} 60... g5 {[%clk
0:00:00.5]} 61. hxg5 {[%clk 0:00:11.5]} 61... fxg5 {[%clk 0:00:00.4]} 62. Rb6
{[%clk 0:00:10]} 1-0

[Event "Live Chess"]
[Site "Chess.com"]
[Date "2024.06.02"]
[Round "-"]
[White "ProfPoisson"]
[Black "Dhaydon19"]
[Result "0-1"]
[WhiteElo "1273"]
[BlackElo "2676"]
[TimeControl "300"]
[EndTime "23:21:50 PDT"]
[Termination "Dhaydon19 won by checkmate"]

1. e4 {[%clk 0:04:56.2]} 1... e6 {[%clk 0:04:59.7]} 2. d4 {[%clk 0:04:53.4]}
2... d5 {[%clk 0:04:59.2]} 3. e5 {[%clk 0:04:51]} 3... c5 {[%clk 0:04:57.7]} 4.
c3 {[%clk 0:04:50.4]} 4... Nc6 {[%clk 0:04:56.7]} 5. Nf3 {[%clk 0:04:48.8]} 5...
Nge7 {[%clk 0:04:55.1]} 6. Bd3 {[%clk 0:04:43.3]} 6... cxd4 {[%clk 0:04:53.3]}
7. cxd4 {[%clk 0:04:41]} 7... Nf5 {[%clk 0:04:53]} 8. Bxf5 {[%clk 0:04:34.8]}
8... exf5 {[%clk 0:04:50.7]} 9. O-O {[%clk 0:04:32.9]} 9... Be6 {[%clk
0:04:49.9]} 10. Nc3 {[%clk 0:04:26.9]} 10... h6 {[%clk 0:04:48.3]} 11. Qb3
{[%clk 0:04:17.9]} 11... Qd7 {[%clk 0:04:46.4]} 12. a3 {[%clk 0:04:06.8]} 12...
Be7 {[%clk 0:04:44.8]} 13. Na4 {[%clk 0:03:57.8]} 13... g5 {[%clk 0:04:40]} 14.
Nc5 {[%clk 0:03:55.9]} 14... Bxc5 {[%clk 0:04:22.6]} 15. dxc5 {[%clk 0:03:51]}
15... d4 {[%clk 0:04:21.9]} 16. Qd1 {[%clk 0:03:39.9]} 16... f4 {[%clk
0:04:19.3]} 17. b4 {[%clk 0:03:37.9]} 17... a6 {[%clk 0:04:18.3]} 18. Bb2 {[%clk
0:03:30]} 18... Rd8 {[%clk 0:04:17]} 19. h4 {[%clk 0:03:20.6]} 19... g4 {[%clk
0:04:14.1]} 20. Nh2 {[%clk 0:03:04.1]} 20... h5 {[%clk 0:04:10.6]} 21. Re1
{[%clk 0:02:57.6]} 21... Rg8 {[%clk 0:03:59.9]} 22. Re4 {[%clk 0:02:55.5]} 22...
f3 {[%clk 0:03:57.1]} 23. gxf3 {[%clk 0:02:42.5]} 23... gxf3+ {[%clk 0:03:54.9]}
24. Kh1 {[%clk 0:02:42.1]} 24... Bh3 {[%clk 0:03:53.9]} 25. Qxf3 {[%clk
0:02:37.3]} 25... Bg2+ {[%clk 0:03:52.3]} 26. Qxg2 {[%clk 0:02:33]} 26... Rxg2
{[%clk 0:03:51.5]} 27. Kxg2 {[%clk 0:02:32.1]} 27... Qd5 {[%clk 0:03:50.3]} 28.
Re1 {[%clk 0:02:26.3]} 28... d3 {[%clk 0:03:47]} 29. e6 {[%clk 0:02:22.7]} 29...
f5 {[%clk 0:03:44.5]} 30. e7 {[%clk 0:01:59.1]} 30... Rd7 {[%clk 0:03:42.5]} 31.
f3 {[%clk 0:01:54.8]} 31... fxe4 {[%clk 0:03:41.1]} 32. Rxe4 {[%clk 0:01:52.3]}
32... Qxe4 {[%clk 0:03:39]} 33. Nf1 {[%clk 0:01:48]} 33... Qe2+ {[%clk
0:03:37.4]} 34. Kh3 {[%clk 0:01:44.6]} 34... Qxf3+ {[%clk 0:03:35.4]} 35. Ng3
{[%clk 0:01:42.1]} 35... Rxe7 {[%clk 0:03:34]} 36. Bf6 {[%clk 0:01:37]} 36...
Re3 {[%clk 0:03:19.7]} 37. Be5 {[%clk 0:01:31.3]} 37... Nxe5 {[%clk 0:03:17.3]}
38. b5 {[%clk 0:01:30.9]} 38... Qxg3# {[%clk 0:03:16.2]} 0-1

[Event "Live Chess"]
[Site "Chess.com"]
[Date "2024.06.02"]
[Round "-"]
[White "MagnersCarlsberg2870"]
[Black "juniortay"]
[Result "0-1"]
[WhiteElo "1826"]
[BlackElo "2408"]
[TimeControl "300"]
[EndTime "23:22:47 PDT"]
[Termination "juniortay won by checkmate"]

1. d4 {[%clk 0:04:57.2]} 1... d5 {[%clk 0:04:57.3]} 2. Nf3 {[%clk 0:04:55.1]}
2... c5 {[%clk 0:04:56.2]} 3. e3 {[%clk 0:04:53.9]} 3... Nc6 {[%clk 0:04:53.5]}
4. Bd3 {[%clk 0:04:52.5]} 4... Nf6 {[%clk 0:04:51.3]} 5. c3 {[%clk 0:04:51.4]}
5... Bg4 {[%clk 0:04:46.9]} 6. h3 {[%clk 0:04:49.9]} 6... Bh5 {[%clk 0:04:45.8]}
7. g4 {[%clk 0:04:48.8]} 7... Bg6 {[%clk 0:04:43.8]} 8. Bxg6 {[%clk 0:04:47.7]}
8... h6 {[%clk 0:04:42.8]} 9. Bc2 {[%clk 0:04:40.9]} 9... e6 {[%clk 0:04:41.1]}
10. Ba4 {[%clk 0:04:38.3]} 10... Bd6 {[%clk 0:04:38.2]} 11. Ne5 {[%clk
0:04:32.5]} 11... O-O {[%clk 0:04:35.4]} 12. Nxc6 {[%clk 0:04:27.9]} 12... bxc6
{[%clk 0:04:34.2]} 13. Bxc6 {[%clk 0:04:26.9]} 13... Rb8 {[%clk 0:04:33.3]} 14.
Ba4 {[%clk 0:04:19.1]} 14... Ne4 {[%clk 0:04:32.4]} 15. Bc2 {[%clk 0:04:16.1]}
15... f5 {[%clk 0:04:31]} 16. gxf5 {[%clk 0:04:12.8]} 16... exf5 {[%clk
0:04:29.8]} 17. Qh5 {[%clk 0:04:06.4]} 17... Qe7 {[%clk 0:04:19.7]} 18. Rg1
{[%clk 0:04:03.2]} 18... Rf6 {[%clk 0:04:17.1]} 19. Nd2 {[%clk 0:03:44.7]} 19...
cxd4 {[%clk 0:03:59.5]} 20. cxd4 {[%clk 0:03:41.3]} 20... Bb4 {[%clk 0:03:58.1]}
21. Qe2 {[%clk 0:03:22.9]} 21... Bxd2+ {[%clk 0:03:45.6]} 22. Bxd2 {[%clk
0:03:21.8]} 22... Rxb2 {[%clk 0:03:44.9]} 23. Bxe4 {[%clk 0:03:05.3]} 23... fxe4
{[%clk 0:03:38.9]} 24. Rc1 {[%clk 0:03:03.1]} 24... Qb7 {[%clk 0:03:14.4]} 25.
a3 {[%clk 0:02:53.8]} 25... Kh7 {[%clk 0:03:05.9]} 26. h4 {[%clk 0:02:47.2]}
26... Rf3 {[%clk 0:03:02.7]} 27. Rg3 {[%clk 0:02:41.5]} 27... Rf5 {[%clk
0:02:47.6]} 28. f3 {[%clk 0:02:40]} 28... Qf7 {[%clk 0:02:30.1]} 29. f4 {[%clk
0:02:28.1]} 29... Rf6 {[%clk 0:02:28.7]} 30. Qd1 {[%clk 0:02:12.7]} 30... Rfb6
{[%clk 0:02:20.4]} 31. Bb4 {[%clk 0:01:57]} 31... Rh2 {[%clk 0:02:13.3]} 32. Rg1
{[%clk 0:01:45]} 32... Rg6 {[%clk 0:02:11.3]} 33. Kf1 {[%clk 0:01:36.9]} 33...
Qf6 {[%clk 0:02:02.2]} 34. Rc7 {[%clk 0:01:21.9]} 34... Qf5 {[%clk 0:01:58.8]}
35. Rxg6 {[%clk 0:01:08.4]} 35... Qh3+ {[%clk 0:01:53.9]} 36. Kg1 {[%clk
0:00:58.1]} 36... Kxg6 {[%clk 0:01:40.9]} 37. h5+ {[%clk 0:00:47.7]} 37... Kh7
{[%clk 0:01:39]} 38. Qa4 {[%clk 0:00:12.4]} 38... Qg2# {[%clk 0:01:37.3]} 0-1

[Event "Live Chess"]
[Site "Chess.com"]
[Date "2024.06.02"]
[Round "-"]
[White "Delacorta"]
[Black "JanMur7"]
[Result "0-1"]
[WhiteElo "1514"]
[BlackElo "2295"]
[TimeControl "300"]
[EndTime "23:23:12 PDT"]
[Termination "JanMur7 won by resignation"]

1. d4 {[%clk 0:04:57]} 1... Nf6 {[%clk 0:04:58.7]} 2. Nf3 {[%clk 0:04:55.7]}
2... e6 {[%clk 0:04:57.1]} 3. e3 {[%clk 0:04:53.8]} 3... d5 {[%clk 0:04:56.5]}
4. Bd3 {[%clk 0:04:52.7]} 4... c5 {[%clk 0:04:55.4]} 5. b3 {[%clk 0:04:51.6]}
5... b6 {[%clk 0:04:53.2]} 6. Bb2 {[%clk 0:04:48.1]} 6... Bb7 {[%clk 0:04:52.6]}
7. Nbd2 {[%clk 0:04:47.1]} 7... Nbd7 {[%clk 0:04:50.8]} 8. O-O {[%clk
0:04:44.4]} 8... Be7 {[%clk 0:04:49.1]} 9. Ne5 {[%clk 0:04:41.9]} 9... O-O
{[%clk 0:04:41.6]} 10. f4 {[%clk 0:04:38.5]} 10... Ne4 {[%clk 0:04:40.4]} 11.
Ndf3 {[%clk 0:04:30]} 11... f5 {[%clk 0:04:25.9]} 12. Nxd7 {[%clk 0:04:14.3]}
12... Qxd7 {[%clk 0:04:25.8]} 13. Ne5 {[%clk 0:04:13.4]} 13... Qc7 {[%clk
0:04:23.2]} 14. Rf3 {[%clk 0:04:05.2]} 14... Bf6 {[%clk 0:04:12.1]} 15. Rh3
{[%clk 0:04:03]} 15... Bxe5 {[%clk 0:04:09.1]} 16. fxe5 {[%clk 0:03:59.4]} 16...
a5 {[%clk 0:03:58.1]} 17. a4 {[%clk 0:03:40.2]} 17... Ba6 {[%clk 0:03:49.9]} 18.
Ba3 {[%clk 0:03:02.8]} 18... Rf7 {[%clk 0:03:15.3]} 19. Rc1 {[%clk 0:02:27.1]}
19... cxd4 {[%clk 0:02:59.1]} 20. exd4 {[%clk 0:02:05.6]} 20... Qd7 {[%clk
0:02:54.4]} 21. Bxe4 {[%clk 0:01:52.5]} 21... fxe4 {[%clk 0:02:51]} 22. Bd6
{[%clk 0:01:47]} 22... Rf1+ {[%clk 0:02:43.1]} 23. Qxf1 {[%clk 0:01:38.2]} 23...
Bxf1 {[%clk 0:02:43]} 24. Kxf1 {[%clk 0:01:37.5]} 24... Rc8 {[%clk 0:02:39.9]}
25. c4 {[%clk 0:01:33.3]} 25... dxc4 {[%clk 0:02:36.2]} 26. bxc4 {[%clk
0:01:30]} 26... Qxa4 {[%clk 0:02:33.2]} 27. Rhc3 {[%clk 0:01:13.5]} 27... Qa2
{[%clk 0:02:15.6]} 28. c5 {[%clk 0:00:53.7]} 28... bxc5 {[%clk 0:02:06.2]} 29.
dxc5 {[%clk 0:00:51.1]} 29... Rc6 {[%clk 0:02:00.3]} 30. R3c2 {[%clk 0:00:38.4]}
30... Qa3 {[%clk 0:01:55.1]} 31. Rb1 {[%clk 0:00:30.7]} 31... Qd3+ {[%clk
0:01:53.4]} 32. Kg1 {[%clk 0:00:28.5]} 32... Qxc2 {[%clk 0:01:49.7]} 33. Rb8+
{[%clk 0:00:27]} 33... Kf7 {[%clk 0:01:49.1]} 34. Rf8+ {[%clk 0:00:25.1]} 34...
Kg6 {[%clk 0:01:48.7]} 0-1

[Event "Live Chess"]
[Site "Chess.com"]
[Date "2024.06.02"]
[Round "-"]
[White "RichardABates"]
[Black "booktrunk"]
[Result "1-0"]
[WhiteElo "2353"]
[BlackElo "1541"]
[TimeControl "300"]
[EndTime "23:24:05 PDT"]
[Termination "RichardABates won by resignation"]

1. d4 {[%clk 0:04:56.5]} 1... b6 {[%clk 0:04:58.9]} 2. e4 {[%clk 0:04:54.8]}
2... Bb7 {[%clk 0:04:56.2]} 3. Bd3 {[%clk 0:04:53.8]} 3... h6 {[%clk 0:04:51.7]}
4. Nf3 {[%clk 0:04:52]} 4... e6 {[%clk 0:04:50.8]} 5. O-O {[%clk 0:04:50.5]}
5... Nf6 {[%clk 0:04:49.6]} 6. Nbd2 {[%clk 0:04:47.5]} 6... c5 {[%clk
0:04:46.1]} 7. c3 {[%clk 0:04:45.7]} 7... cxd4 {[%clk 0:04:44.4]} 8. cxd4 {[%clk
0:04:44.4]} 8... Bb4 {[%clk 0:04:43.3]} 9. Qe2 {[%clk 0:04:39.5]} 9... Bxd2
{[%clk 0:04:41.6]} 10. Bxd2 {[%clk 0:04:36.8]} 10... Qe7 {[%clk 0:04:35.2]} 11.
e5 {[%clk 0:04:30.1]} 11... Nd5 {[%clk 0:04:31.4]} 12. a3 {[%clk 0:04:28.4]}
12... Nc6 {[%clk 0:04:24.8]} 13. Be4 {[%clk 0:04:26.7]} 13... Nc7 {[%clk
0:04:22.4]} 14. Bb4 {[%clk 0:04:06.8]} 14... Qd8 {[%clk 0:04:15.8]} 15. Bd6
{[%clk 0:04:04.8]} 15... Nb5 {[%clk 0:04:11.4]} 16. Qxb5 {[%clk 0:04:01.6]}
16... a6 {[%clk 0:04:09.7]} 17. Qe2 {[%clk 0:03:58.7]} 17... Rc8 {[%clk
0:04:08.4]} 18. Rac1 {[%clk 0:03:56.8]} 18... Na5 {[%clk 0:04:03.4]} 19. b4
{[%clk 0:03:49.4]} 19... Bxe4 {[%clk 0:04:01.4]} 20. Qxe4 {[%clk 0:03:47.6]}
20... Rxc1 {[%clk 0:04:00.1]} 21. Rxc1 {[%clk 0:03:45.8]} 21... Nb3 {[%clk
0:03:57.3]} 22. Rc3 {[%clk 0:03:43.1]} 22... Na1 {[%clk 0:03:51.5]} 23. Qb1
{[%clk 0:03:39.6]} 1-0

[Event "Live Chess"]
[Site "Chess.com"]
[Date "2024.06.02"]
[Round "-"]
[White "RockTroll"]
[Black "Crowded_House"]
[Result "1-0"]
[WhiteElo "2199"]
[BlackElo "1689"]
[TimeControl "300"]
[EndTime "23:24:27 PDT"]
[Termination "RockTroll won by resignation"]

1. Nf3 {[%clk 0:04:53.8]} 1... e6 {[%clk 0:04:58.1]} 2. g3 {[%clk 0:04:52.7]}
2... d5 {[%clk 0:04:56.2]} 3. Bg2 {[%clk 0:04:52.3]} 3... c5 {[%clk 0:04:55.6]}
4. O-O {[%clk 0:04:51.9]} 4... Nc6 {[%clk 0:04:55.1]} 5. d3 {[%clk 0:04:51.6]}
5... Nf6 {[%clk 0:04:54.3]} 6. Nbd2 {[%clk 0:04:51.2]} 6... Bd6 {[%clk
0:04:52.7]} 7. e4 {[%clk 0:04:50.5]} 7... dxe4 {[%clk 0:04:51]} 8. dxe4 {[%clk
0:04:49.1]} 8... Ne5 {[%clk 0:04:46.9]} 9. Nxe5 {[%clk 0:04:47.2]} 9... Bxe5
{[%clk 0:04:46]} 10. c3 {[%clk 0:04:45.4]} 10... O-O {[%clk 0:04:36.3]} 11. f4
{[%clk 0:04:43.8]} 11... Bc7 {[%clk 0:04:32.8]} 12. e5 {[%clk 0:04:43.1]} 12...
Nd5 {[%clk 0:04:29]} 13. Ne4 {[%clk 0:04:41.2]} 13... Rb8 {[%clk 0:04:17.9]} 14.
Qg4 {[%clk 0:04:33.2]} 14... Kh8 {[%clk 0:04:05.2]} 15. Qh5 {[%clk 0:04:29.2]}
15... Ne7 {[%clk 0:03:44]} 16. Ng5 {[%clk 0:04:26.1]} 16... h6 {[%clk
0:03:34.6]} 17. Nxf7+ {[%clk 0:04:24.4]} 17... Rxf7 {[%clk 0:03:32.3]} 18. Qxf7
{[%clk 0:04:23.7]} 18... b6 {[%clk 0:03:15.1]} 19. Be3 {[%clk 0:04:22.4]} 19...
Bb7 {[%clk 0:03:12.1]} 20. Rad1 {[%clk 0:04:21.3]} 20... Qe8 {[%clk 0:02:52]}
21. Qxe8+ {[%clk 0:04:17.8]} 21... Rxe8 {[%clk 0:02:50.3]} 22. Bxb7 {[%clk
0:04:17.4]} 1-0

[Event "Live Chess"]
[Site "Chess.com"]
[Date "2024.06.02"]
[Round "-"]
[White "elephantgerrald"]
[Black "Bradfield133"]
[Result "0-1"]
[WhiteElo "806"]
[BlackElo "1884"]
[TimeControl "300"]
[EndTime "23:24:30 PDT"]
[Termination "Bradfield133 won by checkmate"]

1. e4 {[%clk 0:04:58.8]} 1... c5 {[%clk 0:04:58.5]} 2. Nf3 {[%clk 0:04:57.3]}
2... Nc6 {[%clk 0:04:57.5]} 3. Bb5 {[%clk 0:04:56.3]} 3... Qb6 {[%clk
0:04:55.5]} 4. Bxc6 {[%clk 0:04:55.5]} 4... Qxc6 {[%clk 0:04:53.8]} 5. O-O
{[%clk 0:04:54]} 5... Qxe4 {[%clk 0:04:52.5]} 6. Nc3 {[%clk 0:04:53]} 6... Qc6
{[%clk 0:04:51.1]} 7. d3 {[%clk 0:04:50.9]} 7... d6 {[%clk 0:04:45.9]} 8. Bf4
{[%clk 0:04:48.7]} 8... e5 {[%clk 0:04:39]} 9. Re1 {[%clk 0:04:45.6]} 9... Be7
{[%clk 0:04:37.5]} 10. Bxe5 {[%clk 0:04:41.8]} 10... dxe5 {[%clk 0:04:35.1]} 11.
Nxe5 {[%clk 0:04:40.9]} 11... Qc7 {[%clk 0:04:17.8]} 12. Qh5 {[%clk 0:04:33.6]}
12... g6 {[%clk 0:03:53.2]} 13. Qf3 {[%clk 0:04:30.7]} 13... Be6 {[%clk
0:03:52]} 14. Nb5 {[%clk 0:04:22.8]} 14... Qb6 {[%clk 0:03:38.5]} 15. c4 {[%clk
0:04:20.8]} 15... Nf6 {[%clk 0:03:28.2]} 16. Red1 {[%clk 0:04:02.5]} 16... O-O
{[%clk 0:03:23.2]} 17. d4 {[%clk 0:03:51.5]} 17... a6 {[%clk 0:03:18.6]} 18.
dxc5 {[%clk 0:03:47.3]} 18... Qxc5 {[%clk 0:03:09.1]} 19. Nd7 {[%clk 0:03:15.5]}
19... Bxd7 {[%clk 0:03:03.3]} 20. Qxb7 {[%clk 0:03:13.7]} 20... axb5 {[%clk
0:02:58.5]} 21. cxb5 {[%clk 0:03:07.9]} 21... Qxb5 {[%clk 0:02:55.1]} 22. Qxb5
{[%clk 0:03:00.1]} 22... Bxb5 {[%clk 0:02:52.8]} 23. h3 {[%clk 0:02:55.8]} 23...
Rfd8 {[%clk 0:02:49.2]} 24. Rxd8+ {[%clk 0:02:50.2]} 24... Rxd8 {[%clk
0:02:44.1]} 25. a4 {[%clk 0:02:50.1]} 25... Ra8 {[%clk 0:02:39]} 26. f3 {[%clk
0:02:43.1]} 26... Rxa4 {[%clk 0:02:35.9]} 27. Rxa4 {[%clk 0:02:39.7]} 27... Bxa4
{[%clk 0:02:34.4]} 28. Kf2 {[%clk 0:02:39.6]} 28... Bb5 {[%clk 0:02:29.4]} 29.
Ke3 {[%clk 0:02:39.5]} 29... Bc5+ {[%clk 0:02:27.6]} 30. Kf4 {[%clk 0:02:37.8]}
30... Kg7 {[%clk 0:02:18.2]} 31. Kg5 {[%clk 0:02:34.6]} 31... Bf1 {[%clk
0:02:14.8]} 32. g4 {[%clk 0:02:30.1]} 32... Bxh3 {[%clk 0:02:12.9]} 33. b3
{[%clk 0:02:29]} 33... Bg2 {[%clk 0:02:07.7]} 34. f4 {[%clk 0:02:25.4]} 34...
Bf2 {[%clk 0:02:01.6]} 35. b4 {[%clk 0:02:23.5]} 35... h6# {[%clk 0:01:59.9]}
0-1

[Event "Live Chess"]
[Site "Chess.com"]
[Date "2024.06.02"]
[Round "-"]
[White "WilliamofOrange16th"]
[Black "nigelst"]
[Result "1-0"]
[WhiteElo "1982"]
[BlackElo "1731"]
[TimeControl "300"]
[EndTime "23:24:47 PDT"]
[Termination "WilliamofOrange16th won on time"]

1. e4 {[%clk 0:04:56.9]} 1... c6 {[%clk 0:04:58.6]} 2. d3 {[%clk 0:04:48.3]}
2... d5 {[%clk 0:04:49]} 3. Nc3 {[%clk 0:04:46.3]} 3... e5 {[%clk 0:04:38.5]} 4.
Nf3 {[%clk 0:04:43.2]} 4... Bg4 {[%clk 0:04:33.6]} 5. h3 {[%clk 0:04:41.7]} 5...
Bxf3 {[%clk 0:04:31.3]} 6. Qxf3 {[%clk 0:04:41.6]} 6... d4 {[%clk 0:04:23.7]} 7.
Ne2 {[%clk 0:04:38.4]} 7... Qf6 {[%clk 0:04:15.4]} 8. Qg3 {[%clk 0:04:33.4]}
8... Bd6 {[%clk 0:04:07.2]} 9. f4 {[%clk 0:04:32.6]} 9... exf4 {[%clk
0:04:01.8]} 10. Bxf4 {[%clk 0:04:32.5]} 10... Bxf4 {[%clk 0:04:00]} 11. Nxf4
{[%clk 0:04:32.3]} 11... Nd7 {[%clk 0:03:49.5]} 12. Be2 {[%clk 0:04:29]} 12...
Qe5 {[%clk 0:03:28.9]} 13. O-O {[%clk 0:04:18.5]} 13... Ne7 {[%clk 0:03:24.6]}
14. Bg4 {[%clk 0:04:04.4]} 14... Nf6 {[%clk 0:03:17.3]} 15. Be2 {[%clk 0:04:01]}
15... O-O {[%clk 0:03:12.4]} 16. Qf3 {[%clk 0:03:58]} 16... Ng6 {[%clk
0:03:06.5]} 17. Nxg6 {[%clk 0:03:56.2]} 17... hxg6 {[%clk 0:03:04.1]} 18. g4
{[%clk 0:03:52.1]} 18... Rac8 {[%clk 0:02:52]} 19. Qg2 {[%clk 0:03:48.8]} 19...
c5 {[%clk 0:02:46.3]} 20. g5 {[%clk 0:03:43]} 20... Nh5 {[%clk 0:02:39.7]} 21.
Bxh5 {[%clk 0:03:41]} 21... gxh5 {[%clk 0:02:37.9]} 22. h4 {[%clk 0:03:39.6]}
22... g6 {[%clk 0:02:32.5]} 23. Rf6 {[%clk 0:03:38]} 23... c4 {[%clk 0:02:23.5]}
24. Raf1 {[%clk 0:03:31.7]} 24... cxd3 {[%clk 0:02:15.9]} 25. cxd3 {[%clk
0:03:31.6]} 25... Rc6 {[%clk 0:02:04.1]} 26. Rxc6 {[%clk 0:03:24.2]} 26... bxc6
{[%clk 0:02:02.1]} 27. Qh2 {[%clk 0:03:15.4]} 27... Qe6 {[%clk 0:01:54.9]} 28.
b3 {[%clk 0:03:12.3]} 28... c5 {[%clk 0:01:41.7]} 29. Qg3 {[%clk 0:03:11]} 29...
Qa6 {[%clk 0:01:27.1]} 30. Rf2 {[%clk 0:02:57.4]} 30... Qa3 {[%clk 0:01:21.3]}
31. Qf4 {[%clk 0:02:52.6]} 31... Qb4 {[%clk 0:01:14.2]} 32. Qd2 {[%clk
0:02:47.6]} 32... Qb6 {[%clk 0:01:01.3]} 33. Rf6 {[%clk 0:02:44.9]} 33... Qc7
{[%clk 0:00:56.2]} 34. Qf4 {[%clk 0:02:43.4]} 34... Qa5 {[%clk 0:00:51.7]} 35.
Qf2 {[%clk 0:02:30.6]} 35... Qc3 {[%clk 0:00:45.9]} 36. Qe2 {[%clk 0:02:24]}
36... Qa1+ {[%clk 0:00:44.4]} 37. Kg2 {[%clk 0:02:22.7]} 37... Qc3 {[%clk
0:00:42.7]} 38. Ra6 {[%clk 0:02:15.7]} 38... Qc1 {[%clk 0:00:38.9]} 39. Rxa7
{[%clk 0:02:10.9]} 39... Qf4 {[%clk 0:00:36.6]} 40. Qf2 {[%clk 0:02:05.9]} 40...
Qg4+ {[%clk 0:00:34.7]} 41. Kh2 {[%clk 0:02:04.7]} 41... Qe6 {[%clk 0:00:26.8]}
42. Rc7 {[%clk 0:01:46.6]} 42... Qd6+ {[%clk 0:00:23.8]} 43. Qg3 {[%clk
0:01:45.9]} 43... Qa6 {[%clk 0:00:18.6]} 44. Rxc5 {[%clk 0:01:35.8]} 44... Qxa2+
{[%clk 0:00:17]} 45. Kh3 {[%clk 0:01:35]} 45... Qxb3 {[%clk 0:00:15.6]} 46. Rc7
{[%clk 0:01:32.9]} 46... Qd1 {[%clk 0:00:13.7]} 47. Rd7 {[%clk 0:01:27.9]} 47...
Qh1+ {[%clk 0:00:12.2]} 48. Qh2 {[%clk 0:01:26.4]} 48... Qf1+ {[%clk 0:00:10.7]}
49. Qg2 {[%clk 0:01:22.5]} 49... Qxd3+ {[%clk 0:00:09.4]} 50. Kh2 {[%clk
0:01:21.8]} 50... Qe3 {[%clk 0:00:07.6]} 51. Qg3 {[%clk 0:01:09.1]} 51... Qe2+
{[%clk 0:00:05.9]} 52. Qg2 {[%clk 0:01:07.8]} 52... Qe3 {[%clk 0:00:03.4]} 53.
Ra7 {[%clk 0:01:03.9]} 53... Qf4+ {[%clk 0:00:00.7]} 54. Kh1 {[%clk 0:00:59.4]}
1-0